Workbook

Sheet Main
A1: A1= | B1: 12 | C1: A2= | D1: 1 | E1: Z1= | F1: 6 | G1: Z2= | H1: 1 | I1: a1= | K1: a2= | M1: z1= | O1: z2=
A2: I1= | B2: 0 | C2: I2= | D2: 1 | I2: i1= | K2: I2=
A3: rmax= | B3: 5 | C3: lmax= | D3: 4 | I3: Q=
A4: hbar^2/2m= | B4: 20.736
B13: -0.6220611217
B14: 1.079098331
A16: 1 partial wave(s)
A17: 1 resonance(s)
A19: DataSheet | B19: c12p_146
A20: Angle | B20: 146.9
A21: Type | B21: 0
A22: nbre points | B22: 57
A23: delta_E
A24: selection | N24: 0.473684
A25: famul | N25: 1.5
A26: chi2 part. | B26: 456.3824558 | N26: 0.009474
A28: Cells
A29: nval
A30: initial
A31: final

Sheet input
A1: J | B1: nres | C1: ell | D1: I | E1: ell' | F1: I'
A2: 1 | B2: 1 | C2: 0 | D2: 1
A3: 0.42 | B3: 0.032

Sheet c12p_89
A1: 0.3137289231 | B1: 1949.36 | C1: 45.53 | E1: 89.1
A2: 0.3420327692 | B2: 1631.15 | C2: 39.84 | E2: 0
A3: 0.3676172308 | B3: 1318.585 | C3: 28.455
A4: 0.3777258462 | B4: 1204.945 | C4: 22.775
A5: 0.3870812308 | B5: 1020.15 | C5: 19.93
A6: 0.3964306154 | B6: 829.6625 | C6: 17.0615
A7: 0.4010861538 | B7: 715.9245 | C7: 22.7635
A8: 0.4063813846 | B8: 559.5155 | C8: 14.2275
A9: 0.41697 | B9: 246.6975 | C9: 14.2275
A10: 0.4209936923 | B10: 181.321 | C10: 17.073
A11: 0.4251290769 | B11: 226.918 | C11: 11.382
A12: 0.4337164615 | B12: 631.115 | C12: 17.073
A13: 0.4379898462 | B13: 813.2955 | C13: 22.7405
A14: 0.4442907692 | B14: 978.4375 | C14: 17.0845
A15: 0.4525647692 | B15: 1072.48 | C15: 19.93
A16: 0.4614456923 | B16: 1092.545 | C16: 11.385
A17: 0.4797964615 | B17: 1041.635 | C17: 22.775
A18: 0.4974604615 | B18: 985.029 | C18: 22.751
A19: 0.5171686154 | B19: 928.4565 | C19: 22.7635
A20: 0.5334203077 | B20: 823.4515 | C20: 19.9185
A21: 0.5619752308 | B21: 752.8 | C21: 11.382
A22: 0.5912169231 | B22: 687.8515 | C22: 14.2155
A23: 0.6457323077 | B23: 588.89 | C23: 15.875
A24: 1.5088 | B24: 174.6 | C24: 5.555
A25: 1.536553846 | B25: 196.83 | C25: 3.97
A26: 1.546461538 | B26: 231.75 | C26: 2.38
A27: 1.555169231 | B27: 228.57 | C27: 4.765
A28: 1.563907692 | B28: 214.29 | C28: 3.97
A29: 1.571415385 | B29: 166.67 | C29: 3.97
A30: 1.583261538 | B30: 109.52 | C30: 3.175
A31: 1.592123077 | B31: 77.778 | C31: 3.1745
A32: 1.601692308 | B32: 92.063 | C32: 2.381
A33: 1.609046154 | B33: 150.79 | C33: 4.765
A34: 1.618738462 | B34: 219.05 | C34: 4.765
A35: 1.625876923 | B35: 234.92 | C35: 6.35
A36: 1.635938462 | B36: 242.86 | C36: 3.97
A37: 1.654707692 | B37: 241.27 | C37: 3.965
A38: 1.747876923 | B38: 193.65 | C38: 2.385
A39: 1.838030769 | B39: 173.02 | C39: 3.175

Sheet c12p_146
A1: =0.299115*(12/13) -> 0.2761061538 | B1: 758.98 | C1: 22.18 | E1: 146.9
A2: =0.337825*(12/13) -> 0.3118384615 | B2: 534.285 | C2: 8.29 | E2: 0
A3: =0.36805*(12/13) -> 0.3397384615 | B3: 413.245 | C3: 8.33
A4: =0.39759*(12/13) -> 0.3670061538 | B4: 268.63 | C4: 5.56
A5: =0.409195*(12/13) -> 0.3777184615 | B5: 213.55 | C5: 5.54
A6: =0.418345*(12/13) -> 0.3861646154 | B6: 162.555 | C6: 8.31
A7: =0.427845*(12/13) -> 0.3949338462 | B7: 110.185 | C7: 8.33
A8: =0.434515*(12/13) -> 0.4010907692 | B8: 89.599 | C8: 5.54
A9: =0.43873*(12/13) -> 0.4049815385 | B9: 80.02 | C9: 8.31
A10: =0.443965*(12/13) -> 0.4098138462 | B10: 113.405 | C10: 8.29
A11: =0.449145*(12/13) -> 0.4145953846 | B11: 217.43 | C11: 16.62
A12: =0.453245*(12/13) -> 0.41838 | B12: 369.9 | C12: 33.2
A13: =0.45799*(12/13) -> 0.42276 | B13: 601.325 | C13: 30.47
A14: =0.46415*(12/13) -> 0.4284461538 | B14: 813.41 | C14: 22.16
A15: =0.469695*(12/13) -> 0.4335646154 | B15: 900.825 | C15: 19.39
A16: =0.474235*(12/13) -> 0.4377553846 | B16: 925.875 | C16: 13.83
A17: =0.478795*(12/13) -> 0.4419646154 | B17: 921.85 | C17: 16.62
A18: =0.483045*(12/13) -> 0.4458876923 | B18: 861.03 | C18: 16.62
A19: =0.487975*(12/13) -> 0.4504384615 | B19: 820.995 | C19: 8.31
A20: =0.498205*(12/13) -> 0.4598815385 | B20: 729.865 | C20: 13.83
A21: =0.50842*(12/13) -> 0.4693107692 | B21: 655.355 | C21: 8.31
A22: =0.51896*(12/13) -> 0.47904 | B22: 612.71 | C22: 5.54
A23: =0.53865*(12/13) -> 0.4972153846 | B23: 524.62 | C23: 11.08
A24: =0.557615*(12/13) -> 0.5147215385 | B24: 469.74 | C24: 11.08
A25: =0.57761*(12/13) -> 0.5331784615 | B25: 441.205 | C25: 8.33
A26: =0.607435*(12/13) -> 0.5607092308 | B26: 393.56 | C26: 5.54
A27: =0.637605*(12/13) -> 0.5885584615 | B27: 352.84 | C27: 5.54
A28: 0.64596 | B28: 312.83 | C28: 4.01
A29: 0.6913015385 | B29: 283.98 | C29: 9.825
A30: 0.7378153846 | B30: 267.96 | C30: 3.205
A31: 0.7839969231 | B31: 243.91 | C31: 3.21
A32: 0.83044 | B32: 235.91 | C32: 4.01
A33: 0.8759723077 | B33: 223.1 | C33: 3.21
A34: 0.9238461538 | B34: 216.7 | C34: 2.41
A35: 0.9673230769 | B35: 211.91 | C35: 2.405
A36: 1.061230769 | B36: 191.09 | C36: 2.405
A37: 1.151107692 | B37: 183.11 | C37: 2.41
A38: 1.245230769 | B38: 179.95 | C38: 2.405
A39: 1.428153846 | B39: 176.82 | C39: 2.41
A40: 1.475046154 | B40: 172.03 | C40: 2.405
A41: 1.511076923 | B41: 147.98 | C41: 1.605
A42: 1.530584615 | B42: 101.46 | C42: 2.4075
A43: 1.538369231 | B43: 62.964 | C43: 1.6045
A44: 1.548738462 | B44: 11.632 | C44: 2.406
A45: 1.558061538 | B45: 3.6149 | C45: 2.406405
A46: 1.567230769 | B46: 70.999 | C46: 4.0105
A47: 1.573292308 | B47: 249.08 | C47: 6.415
A48: 1.579661538 | B48: 409.51 | C48: 7.22
A49: 1.5848 | B49: 587.58 | C49: 8.02
A50: 1.595907692 | B50: 589.19 | C50: 7.215
A51: 1.6052 | B51: 478.5 | C51: 6.415
A52: 1.617784615 | B52: 308.45 | C52: 5.615
A53: 1.627415385 | B53: 208.99 | C53: 5.615
A54: 1.638523077 | B54: 144.83 | C54: 4.01
A55: 1.658492308 | B55: 98.312 | C55: 3.208
A56: 1.7512 | B56: 91.936 | C56: 1.604
A57: 1.841815385 | B57: 99.998 | C57: 2.405

Sheet he6pn
A1: 0.95788 | B1: 6.71546 | C1: 3.71313 | E1: 180
A2: 1.00469 | B2: 26.3542 | C2: 5.07389 | E2: 1
A3: 1.05397 | B3: 32.0966 | C3: 5.37899
A4: 1.10502 | B4: 48.6527 | C4: 6.52999
A5: 1.15737 | B5: 101.751 | C5: 10.3699
A6: 1.21071 | B6: 165.278 | C6: 14.8703
A7: 1.26483 | B7: 182.024 | C7: 15.9964
A8: 1.31956 | B8: 142.716 | C8: 13.1037
A9: 1.37479 | B9: 85.2891 | C9: 8.9072
A10: 1.43041 | B10: 46.3783 | C10: 6.05156
A11: 1.48638 | B11: 49.7665 | C11: 6.25796
A12: 1.54262 | B12: 24.7437 | C12: 4.36506
A13: 1.5991 | B13: 35.5138 | C13: 5.1337
A14: 1.65578 | B14: 20.3976 | C14: 3.96037
A15: 1.71264 | B15: 20.5554 | C15: 3.94047
A16: 1.76965 | B16: 13.5998 | C16: 3.36469
A17: 1.82679 | B17: 13.8246 | C17: 3.35507
A18: 1.88404 | B18: 9.27994 | C18: 2.95747
A19: 1.9414 | B19: 22.3308 | C19: 3.9925
A20: 1.99885 | B20: 11.7825 | C20: 3.12183
A21: 2.05637 | B21: 12.0819 | C21: 3.12948
A22: 2.11398 | B22: 14.0608 | C22: 3.28112
A23: 2.17164 | B23: 21.5041 | C23: 3.88712
A24: 2.22936 | B24: 10.7829 | C24: 2.96625
A25: 2.28714 | B25: 24.4138 | C25: 4.11296
A26: 2.34497 | B26: 15.7747 | C26: 3.37692
A27: 2.40283 | B27: 9.58825 | C27: 2.79757
A28: 2.46074 | B28: 16.086 | C28: 3.3789
A29: 2.51869 | B29: 15.1837 | C29: 3.27462
A30: 2.57666 | B30: 13.4929 | C30: 3.10058
A31: 2.63467 | B31: 18.7219 | C31: 3.57535
A32: 2.69271 | B32: 14.3262 | C32: 3.14912
A33: 2.75077 | B33: 16.9701 | C33: 3.39404
A34: 2.80886 | B34: 31.9213 | C34: 4.74439
A35: 2.86697 | B35: 20.5882 | C35: 3.7326
A36: 2.9251 | B36: 21.4532 | C36: 3.81864
A37: 2.98326 | B37: 17.6254 | C37: 3.44753
A38: 3.04142 | B38: 18.8557 | C38: 3.57884
A39: 3.09961 | B39: 16.2432 | C39: 3.31681
A40: 3.15781 | B40: 22.2862 | C40: 3.95359
A41: 3.21603 | B41: 18.2421 | C41: 3.56008
A42: 3.27426 | B42: 17.354 | C42: 3.48619
A43: 3.33251 | B43: 25.2379 | C43: 4.33164
A44: 3.39076 | B44: 17.4139 | C44: 3.54581
A45: 3.44903 | B45: 17.1419 | C45: 3.54126

Sheet he6pp
A1: 0.1 | B1: 0 | C1: 5 | E1: 180
A2: 0.2 | B2: 0 | C2: 5 | E2: 0
A3: 0.3 | B3: 0 | C3: 5
A4: 0.4 | B4: 0 | C4: 5
A5: 0.5 | B5: 0 | C5: 5
A6: 0.6 | B6: 0 | C6: 5
A7: 0.7 | B7: 0 | C7: 5
A8: 0.8 | B8: 0 | C8: 5
A9: 0.9 | B9: 0 | C9: 5
A10: 1 | B10: 0 | C10: 5
A11: 1.1 | B11: 0 | C11: 5
A12: 1.2 | B12: 0 | C12: 5
A13: 1.3 | B13: 0 | C13: 5
A14: 1.4 | B14: 0 | C14: 5
A15: 1.5 | B15: 0 | C15: 5
A16: 1.6 | B16: 0 | C16: 5
A17: 1.7 | B17: 0 | C17: 5
A18: 1.8 | B18: 0 | C18: 5
A19: 1.9 | B19: 0 | C19: 5
A20: 2 | B20: 0 | C20: 5

Sheet Coulomb
A1: A1= | D1: L=
A2: A2= | D2: a=
A3: Z1= | D3: Emin=
A4: Z2= | D4: Emax=
D5: Estep=
A7: E (MeV) | B7: Fl | C7: Gl | D7: Fl' | E7: Gl' | F7: Pl | G7: Sl | H7: delta_HS (rad.)

Sheet HELP
